bitfinex/quotes_SOLUSD_20241218
["timestamp","ask_amount","ask_price","bid_price","bid_amount"]
[1734550807354,24.67418663,216.03,215.95,24.67418663]
[1734550807864,24.67418663,216.01,215.93,24.67418663]
[1734550808355,24.67418663,215.99,215.91,24.67418663]
[1734550808566,24.67418663,216.01,215.93,24.67418663]
[1734550809162,24.67418663,216.05,215.97,24.67418663]
[1734550809852,24.67418663,216.07,215.99,24.67418663]
[1734550810272,24.67418663,216.09,216.01,24.67418663]
[1734550810455,24.67418663,216.11,216.03,24.67418663]
[1734550810660,24.67418663,216.13,216.05,24.67418663]
[1734550811078,24.67418663,216.11,216.03,24.67418663]
[1734550811382,24.67418663,216.05,215.97,24.67418663]
[1734550811597,24.67418663,216.03,215.95,24.67418663]
[1734550812555,24.67418663,216.01,215.93,24.67418663]
[1734550812970,24.67418663,216.03,215.95,24.67418663]
[1734550813589,24.67418663,216.01,215.93,24.67418663]
[1734550814186,31.5777,216.18,215.99,24.67418663]
[1734550814187,24.67418663,216.11,215.99,24.67418663]
[1734550814485,24.67418663,216.11,216.03,24.67418663]
[1734550814784,24.67418663,216.09,216.01,24.67418663]
[1734550814950,24.67418663,216.07,215.99,24.67418663]
[1734550815147,24.67418663,216.05,215.97,44.67418663]
[1734550815501,24.67418663,216.03,215.95,24.67418663]
[1734550816080,24.67418663,216.05,215.95,24.67418663]
[1734550816282,24.67418663,216.05,215.97,24.67418663]
[1734550816985,24.67418663,216.03,215.95,24.67418663]
[1734550817185,24.67418663,215.99,215.91,24.67418663]
[1734550817363,24.67418663,215.99,215.9,0.69442114]
[1734550817364,24.67418663,215.97,215.89,24.67418663]
[1734550817570,24.67418663,215.95,215.87,24.67418663]
[1734550817764,24.67418663,215.93,215.85,24.67418663]
[1734550817978,24.67418663,215.96,215.89,24.67418663]
[1734550818282,24.67418663,216.01,215.93,24.67418663]
[1734550819791,24.67418663,216.01,215.92,20.0]
[1734550820173,24.67418663,215.99,215.91,24.67418663]
[1734550820780,24.67418663,216.01,215.93,24.67418663]
[1734550822477,24.67418663,216.05,215.97,24.67418663]
[1734550823209,24.67418663,216.07,215.99,24.67418663]
[1734550823368,24.67418663,216.09,216.01,24.67418663]
[1734550823567,24.67418663,216.11,216.03,24.67418663]
[1734550823992,24.67418663,216.15,216.06,24.67418663]
[1734550824200,24.67418663,216.17,216.1,24.67418663]
[1734550824389,0.5661447,216.22,216.14,24.67418663]
[1734550824705,0.5661447,216.22,216.18,24.67418663]
[1734550825566,0.5661447,216.22,216.2,24.67418663]
[1734550825994,0.5661447,216.22,216.16,24.67418663]
[1734550826206,0.5661447,216.22,216.1,20.0]
[1734550826207,24.67418663,216.21,216.14,24.67418663]
[1734550826363,24.67418663,216.19,216.12,24.67418663]
[1734550826565,24.67418663,216.21,216.12,24.67418663]
[1734550827010,24.67418663,216.21,216.14,24.67418663]
[1734550827488,24.67418663,216.19,216.12,24.67418663]
[1734550828493,24.67418663,216.21,216.14,24.67418663]
[1734550829490,0.5661447,216.22,216.14,24.67418663]
[1734550829660,0.5661447,216.22,216.18,24.67418663]
[1734550829865,0.5661447,216.22,216.2,24.67418663]
[1734550832179,0.5661447,216.22,216.21,12.25634918]
[1734550832382,4.47e-05,216.22,216.21,42.65563318]
[1734550833005,4.47e-05,216.22,216.21,42.78112318]
[1734550833888,4.47e-05,216.22,216.21,18.87874918]
[1734550834228,4.47e-05,216.22,216.21,42.65563318]
[1734550834522,4.47e-05,216.22,216.2,24.67418663]
[1734550835025,4.47e-05,216.22,216.2,36.93085731]
[1734550835311,4.47e-05,216.22,216.21,23.776884]
[1734550835485,4.47e-05,216.22,216.21,23.902374]
[1734550836292,4.47e-05,216.22,216.21,23.776884]
[1734550836493,4.47e-05,216.22,216.2,36.93085731]
[1734550836694,4.47e-05,216.22,216.2,24.67418663]
[1734550837092,4.47e-05,216.22,216.21,23.776884]
[1734550837293,24.67418663,216.38,216.22,0.12549]
[1734550837494,24.67418663,216.42,216.33,24.67418663]
[1734550837804,24.67418663,216.4,216.32,24.67418663]
[1734550837984,6.0291,216.43,216.26,24.67418663]
[1734550837985,24.67418663,216.42,216.34,24.67418663]
[1734550838305,24.67418663,216.4,216.32,24.67418663]
[1734550839588,24.67418663,216.38,216.3,24.67418663]
[1734550840304,24.67418663,216.4,216.3,24.67418663]
[1734550840519,24.67418663,216.4,216.32,24.67418663]
[1734550841913,24.67418663,216.42,216.34,24.67418663]
[1734550842226,25.24033133,216.44,216.36,24.67418663]
[1734550842513,0.5661447,216.44,216.4,24.67418663]
[1734550843290,0.5661447,216.44,216.43,68.45107063]
[1734550843515,0.5661447,216.44,216.43,69.14379601]
[1734550844014,0.5661447,216.44,216.43,69.26928601]
[1734550844217,24.67418663,216.6,216.47,20.0]
[1734550844392,24.67418663,216.6,216.53,24.67418663]
[1734550844594,24.67418663,216.6,216.51,24.67418663]
[1734550845217,24.67418663,216.56,216.49,24.67418663]
[1734550845603,24.67418663,216.52,216.39,11.5528]
[1734550845917,24.67418663,216.5,216.42,24.67418663]
[1734550846335,24.67418663,216.52,216.42,24.67418663]
[1734550847224,24.67418663,216.5,216.42,24.67418663]
[1734550847436,24.67418663,216.56,216.46,24.67418663]
[1734550847590,24.67418663,216.58,216.5,24.67418663]
[1734550847796,24.67418663,216.6,216.52,24.67418663]
[1734550848722,8.2534,216.61,216.55,40.24892792]
[1734550849228,8.2534,216.61,216.43,1.5358]
[1734550849229,8.2534,216.61,216.53,40.24892792]
[1734550849395,40.24892792,216.6,216.51,40.24892792]
[1734550850323,8.2534,216.61,216.53,40.24892792]
[1734550850623,40.24892792,216.6,216.53,40.24892792]
[1734550850825,40.24892792,216.6,216.51,40.24892792]
[1734550851008,40.24892792,216.6,216.53,40.24892792]
[1734550851320,8.2534,216.61,216.53,40.24892792]
[1734550851721,8.2534,216.61,216.55,40.24892792]
[1734550852704,40.24892792,216.64,216.55,40.24892792]
[1734550853424,40.24892792,216.62,216.55,40.24892792]
[1734550853723,40.24892792,216.62,216.53,40.24892792]
[1734550854124,40.24892792,216.6,216.51,40.24892792]
[1734550854423,40.24892792,216.58,216.51,40.24892792]
[1734550854626,40.24892792,216.6,216.51,40.24892792]
[1734550855310,40.24892792,216.6,216.53,40.24892792]
[1734550856031,40.24892792,216.62,216.53,40.24892792]
[1734550856340,40.24892792,216.6,216.53,40.24892792]
[1734550856824,40.24892792,216.6,216.51,40.24892792]
[1734550857224,40.24892792,216.52,216.45,40.24892792]
[1734550857607,40.24892792,216.52,216.43,40.24892792]
[1734550858117,40.24892792,216.48,216.39,40.24892792]
[1734550858429,40.24892792,216.44,216.35,40.24892792]
[1734550858743,40.24892792,216.42,216.33,40.24892792]
[1734550859104,40.24892792,216.42,216.35,40.24892792]
[1734550859408,40.24892792,216.46,216.37,40.24892792]
[1734550859923,40.24892792,216.49,216.39,40.24892792]
[1734550860142,40.24892792,216.43,216.35,40.24892792]
[1734550860306,40.24892792,216.41,216.33,40.24892792]
[1734550860500,23.776884,216.44,216.37,40.24892792]
[1734550860918,40.24892792,216.43,216.35,40.24892792]
[1734550861124,40.24892792,216.41,216.33,40.24892792]
[1734550861325,40.24892792,216.41,216.31,40.24892792]
[1734550861532,40.24892792,216.41,216.33,40.24892792]
[1734550861908,23.776884,216.44,216.35,40.24892792]
[1734550862112,40.24892792,216.45,216.37,40.24892792]
[1734550862335,40.24892792,216.47,216.39,40.24892792]
[1734550862549,40.24892792,216.49,216.41,40.24892792]
[1734550863938,40.24892792,216.51,216.43,40.24892792]
[1734550864366,40.24892792,216.49,216.41,40.24892792]
[1734550864511,40.24892792,216.47,216.39,40.24892792]
[1734550864703,40.24892792,216.47,216.37,40.24892792]
[1734550864905,40.24892792,216.45,216.37,40.24892792]
[1734550865147,40.24892792,216.48,216.41,40.24892792]
[1734550865307,41.85222792,216.54,216.45,40.24892792]
[1734550865507,40.24892792,216.56,216.47,40.24892792]
[1734550865915,70.24892792,216.7,216.51,40.24892792]
[1734550865916,40.24892792,216.58,216.51,40.24892792]
[1734550866113,40.24892792,216.62,216.55,40.24892792]
[1734550866431,2.1213447,216.66,216.59,40.24892792]
[1734550866631,0.5661447,216.66,216.59,40.24892792]
[1734550866931,0.5661447,216.66,216.5,2.20186072]
[1734550866932,40.24892792,216.64,216.57,40.24892792]
[1734550868455,40.24892792,216.64,216.55,40.24892792]
[1734550868812,40.24892792,216.62,216.55,40.24892792]
[1734550869241,40.24892792,216.64,216.57,40.24892792]
[1734550869459,40.81507262,216.66,216.57,40.24892792]
[1734550869614,0.5661447,216.66,216.59,40.24892792]
[1734550870009,0.5661447,216.66,216.61,40.24892792]
[1734550870547,0.5661447,216.66,216.59,40.24892792]
[1734550872153,0.5661447,216.66,216.53,0.6924314]
[1734550872154,0.5661447,216.66,216.6,24.74938021]
[1734550872785,44.74938021,216.65,216.56,24.74938021]
[1734550872966,24.74938021,216.59,216.52,24.74938021]
[1734550873274,24.74938021,216.57,216.48,24.74938021]
[1734550873435,24.74938021,216.57,216.5,24.74938021]
[1734550873635,24.74938021,216.59,216.5,24.74938021]
[1734550874861,24.74938021,216.61,216.52,24.74938021]
[1734550875170,24.74938021,216.65,216.56,24.74938021]
[1734550875476,24.74938021,216.67,216.58,24.74938021]
[1734550875777,24.74938021,216.65,216.58,24.74938021]
[1734550876171,40.23503609,216.64,216.57,40.23503609]
[1734550876348,40.23503609,216.64,216.55,40.23503609]
[1734550876549,40.80118079,216.66,216.57,40.23503609]
[1734550877149,40.23503609,216.64,216.55,40.23503609]
[1734550877352,40.23503609,216.6,216.53,40.23503609]
[1734550877552,40.23503609,216.6,216.51,40.23503609]
[1734550877776,40.23503609,216.58,216.51,40.23503609]
[1734550877954,40.23503609,216.58,216.49,40.23503609]
[1734550878163,40.23503609,216.56,216.47,40.23503609]
[1734550878780,40.23503609,216.54,216.45,40.23503609]
[1734550879104,40.23503609,216.52,216.43,59.39739626]
[1734550879564,40.23503609,216.52,216.45,40.23503609]
[1734550879767,40.23503609,216.52,216.43,59.39739626]
[1734550880084,40.23503609,216.5,216.43,59.39739626]
[1734550880254,40.23503609,216.46,216.37,40.23503609]
[1734550880895,40.23503609,216.44,216.37,40.23503609]
[1734550881196,40.23503609,216.46,216.37,40.23503609]
[1734550882100,39.73503609,216.46,216.37,40.23503609]
[1734550882304,40.23503609,216.45,216.37,40.23503609]
[1734550882966,40.23503609,216.49,216.41,40.23503609]
[1734550883160,40.23503609,216.51,216.43,40.23503609]
[1734550883365,40.23503609,216.47,216.39,40.23503609]
[1734550883593,34.0721,216.55,216.35,40.23503609]
[1734550883801,40.23503609,216.41,216.33,40.23503609]
[1734550884109,40.23503609,216.39,216.31,40.23503609]
[1734550884862,40.23503609,216.43,216.35,40.23503609]
[1734550885068,40.23503609,216.46,216.37,40.23503609]
[1734550885293,40.23503609,216.48,216.41,40.23503609]
[1734550885678,40.23503609,216.46,216.37,40.23503609]
[1734550885881,40.23503609,216.46,216.39,40.23503609]
[1734550886109,40.23503609,216.48,216.39,40.23503609]
[1734550886727,40.23503609,216.46,216.37,40.23503609]
[1734550887019,1.6322,216.51,216.33,40.23503609]
[1734550887020,40.23503609,216.4,216.33,40.23503609]
[1734550887191,40.23503609,216.42,216.33,40.23503609]
[1734550887397,40.23503609,216.42,216.35,40.23503609]
[1734550887691,40.23503609,216.42,216.33,40.23503609]
[1734550888304,40.23503609,216.42,216.28,11.559]
[1734550888305,40.23503609,216.44,216.35,40.23503609]
[1734550888516,40.23503609,216.44,216.37,40.23503609]
[1734550888812,40.23503609,216.53,216.43,40.23503609]
[1734550889187,40.23503609,216.51,216.43,40.23503609]
[1734550890000,40.23503609,216.51,216.41,40.23503609]
[1734550890732,40.23503609,216.45,216.38,40.23503609]
[1734550891012,40.23503609,216.43,216.36,40.23503609]
[1734550891217,40.23503609,216.43,216.34,40.23503609]
[1734550891581,40.23503609,216.41,216.34,40.23503609]
[1734550891778,40.23503609,216.41,216.32,40.23503609]
[1734550892186,40.23503609,216.41,216.34,40.23503609]
[1734550892387,40.23503609,216.41,216.32,40.23503609]
[1734550892818,40.23503609,216.39,216.3,40.23503609]
[1734550893120,40.23503609,216.37,216.28,40.23503609]
[1734550893321,40.23503609,216.35,216.26,40.23503609]
[1734550893624,40.23503609,216.33,216.26,40.23503609]
[1734550893807,60.23503609,216.35,216.26,40.23503609]
[1734550893985,6.2659,216.42,216.28,40.23503609]
[1734550893986,40.23503609,216.37,216.28,40.23503609]
[1734550894185,40.23503609,216.39,216.3,40.23503609]
[1734550895013,40.23503609,216.39,216.32,40.23503609]
[1734550895614,40.23503609,216.39,216.3,40.23503609]
[1734550895921,40.23503609,216.39,216.32,40.23503609]
[1734550896090,40.23503609,216.39,216.3,40.23503609]
[1734550896294,41.88653609,216.45,216.36,40.23503609]
[1734550896496,40.23503609,216.45,216.36,40.23503609]
[1734550897208,40.23503609,216.42,216.36,40.23503609]
[1734550897528,40.23503609,216.44,216.36,40.23503609]
[1734550897820,40.23503609,216.46,216.38,40.23503609]
[1734550898830,40.23503609,216.46,216.36,40.23503609]
[1734550898990,40.23503609,216.4,216.32,40.23503609]
[1734550899191,40.23503609,216.38,216.28,40.23503609]
[1734550899410,40.23503609,216.38,216.3,40.23503609]
[1734550899693,40.23503609,216.42,216.34,40.23503609]
[1734550900106,24.80384895,216.46,216.38,24.80384895]
[1734550900616,24.80384895,216.48,216.38,24.80384895]
[1734550901225,24.80384895,216.48,216.34,6.2834]
[1734550901226,24.80384895,216.48,216.4,24.80384895]
[1734550901592,24.80384895,216.5,216.4,24.80384895]
[1734550901936,24.80384895,216.5,216.42,24.80384895]
[1734550902113,24.80384895,216.52,216.44,24.80384895]
[1734550902317,24.80384895,216.54,216.4,20.0]
[1734550902623,24.80384895,216.56,216.48,24.80384895]
[1734550903196,24.80384895,216.53,216.46,24.80384895]
[1734550903393,24.80384895,216.53,216.44,24.80384895]
[1734550903596,24.80384895,216.51,216.42,24.80384895]
[1734550903897,24.80384895,216.5,216.42,24.80384895]
[1734550905108,24.80384895,216.52,216.44,24.80384895]
[1734550905293,24.80384895,216.5,216.42,24.80384895]
[1734550905622,24.80384895,216.44,216.35,24.80384895]
[1734550906107,24.80384895,216.44,216.37,24.80384895]
[1734550906626,24.80384895,216.46,216.37,24.80384895]
[1734550907323,24.80384895,216.46,216.39,24.80384895]
[1734550907496,1.623,216.5,216.39,24.80384895]
[1734550907497,24.80384895,216.48,216.39,24.80384895]
[1734550909109,24.80384895,216.54,216.45,24.80384895]
[1734550909315,24.80384895,216.54,216.47,24.80384895]
[1734550910040,24.80384895,216.56,216.47,24.80384895]
[1734550910241,24.80384895,216.56,216.49,24.80384895]
[1734550910439,24.80384895,216.58,216.49,24.80384895]
[1734550910618,24.80384895,216.58,216.51,24.80384895]
[1734550911121,24.80384895,216.58,216.49,24.80384895]
[1734550911321,24.80384895,216.54,216.47,24.80384895]
[1734550911843,24.80384895,216.54,216.45,24.80384895]
[1734550912043,24.80384895,216.52,216.43,24.80384895]
[1734550912351,24.80384895,216.54,216.45,24.80384895]
[1734550912651,24.80384895,216.47,216.38,24.80384895]
[1734550913349,24.80384895,216.47,216.4,24.80384895]
[1734550914419,24.80384895,216.45,216.36,24.80384895]
[1734550914844,24.80384895,216.43,216.34,24.80384895]
[1734550915159,24.80384895,216.41,216.32,24.80384895]
[1734550915826,24.80384895,216.43,216.34,24.80384895]
[1734550916621,24.80384895,216.41,216.34,24.80384895]
[1734550916948,24.80384895,216.41,216.32,24.80384895]
[1734550917735,24.80384895,216.39,216.3,24.80384895]
[1734550918135,24.80384895,216.48,216.25,2.3161683]
[1734550918136,24.80384895,216.41,216.32,24.80384895]
[1734550918447,20.0,216.41,216.34,24.80384895]
[1734550918648,20.0,216.41,216.26,24.80384895]
[1734550918649,24.80384895,216.4,216.32,24.80384895]
[1734550919417,20.0,216.41,216.25,1.6228]
[1734550919418,24.80384895,216.38,216.3,24.80384895]
[1734550920450,24.80384895,216.38,216.28,24.80384895]
[1734550920761,24.80384895,216.34,216.26,24.80384895]
[1734550920921,24.80384895,216.38,216.3,24.80384895]
[1734550921117,24.80384895,216.4,216.32,24.80384895]
[1734550922043,24.80384895,216.36,216.28,24.80384895]
[1734550922239,24.80384895,216.36,216.24,6.2957]
[1734550922240,24.80384895,216.4,216.32,24.80384895]
[1734550923628,24.80384895,216.36,216.28,24.80384895]
[1734550924140,23.776884,216.44,216.24,6.2957]
[1734550924141,24.80384895,216.4,216.3,24.80384895]
[1734550924353,24.80384895,216.42,216.34,24.80384895]
[1734550924525,88.07783064,216.55,216.36,24.80384895]
[1734550924526,24.80384895,216.44,216.36,24.80384895]
[1734550924963,7.7322,216.5,216.34,24.80384895]
[1734550924964,24.80384895,216.42,216.34,24.80384895]
[1734550925351,24.80384895,216.38,216.3,24.80384895]
[1734550925665,24.80384895,216.36,216.28,24.80384895]
[1734550925970,24.80384895,216.34,216.26,24.80384895]
[1734550926828,24.80384895,216.34,216.22,19.18127779]
[1734550926829,24.80384895,216.36,216.28,24.80384895]
[1734550927234,24.80384895,216.34,216.26,24.80384895]
[1734550927839,24.80384895,216.34,216.22,19.18127779]
[1734550927840,24.80384895,216.32,216.24,24.80384895]
[1734550928360,24.80384895,216.34,216.26,24.80384895]
[1734550928559,24.80384895,216.34,216.28,24.80384895]
[1734550928759,9.97653474,216.42,216.28,24.80384895]
[1734550928760,24.80384895,216.36,216.28,24.80384895]
[1734550929064,24.80384895,216.34,216.26,24.80384895]
[1734550929264,24.80384895,216.34,216.22,19.18127779]
[1734550929265,24.80384895,216.32,216.24,24.80384895]
[1734550929446,24.80384895,216.3,216.22,43.98512674]
[1734550930243,24.80384895,216.34,216.26,24.80384895]
[1734550930446,24.80384895,216.34,216.22,19.18127779]
[1734550930447,24.80384895,216.36,216.28,24.80384895]
[1734550930756,24.80384895,216.32,216.24,24.80384895]
[1734550931157,24.80384895,216.3,216.22,43.98512674]
[1734550932241,24.80384895,216.26,216.18,24.80384895]
[1734550932750,24.80384895,216.32,216.24,24.80384895]
[1734550933153,24.80384895,216.34,216.26,24.80384895]
[1734550933356,24.80384895,216.38,216.3,24.80384895]
[1734550933746,24.80384895,216.4,216.32,24.80384895]
[1734550934744,24.80384895,216.33,216.16,6.5149]
[1734550934939,24.80384895,216.28,216.2,24.80384895]
[1734550935138,24.80384895,216.28,216.18,24.80384895]
[1734550935668,24.80384895,216.26,216.18,24.80384895]
[1734550936070,24.80384895,216.22,216.14,24.80384895]
[1734550936373,23.776884,216.25,216.09,6.6149]
[1734550936374,24.80384895,216.2,216.12,24.80384895]
[1734550936760,24.80384895,216.2,216.1,24.80384895]
[1734550937681,24.80384895,216.22,216.14,24.80384895]
[1734550938241,23.776884,216.25,216.12,24.80384895]
[1734550938242,24.80384895,216.2,216.12,24.80384895]
[1734550939868,24.80384895,216.22,216.14,24.80384895]
[1734550940544,24.80384895,216.24,216.16,24.80384895]
[1734550940957,24.80384895,216.26,216.18,24.80384895]
[1734550941161,24.80384895,216.28,216.18,24.80384895]
[1734550941562,24.80384895,216.26,216.18,24.80384895]
[1734550941985,24.80384895,216.26,216.11,23.776884]
[1734550942150,1.5883,216.29,216.14,24.80384895]
[1734550942367,24.80384895,216.2,216.12,24.80384895]
[1734550942564,24.80384895,216.22,216.12,24.80384895]
[1734550942869,24.80384895,216.24,216.16,24.80384895]
[1734550943076,24.80384895,216.26,216.16,24.80384895]
[1734550943375,24.80384895,216.28,216.18,24.80384895]
[1734550943586,24.80384895,216.24,216.16,24.80384895]
[1734550943868,1.5883,216.29,216.12,24.80384895]
[1734550943869,24.80384895,216.22,216.12,24.80384895]
[1734550944081,24.80384895,216.19,216.12,24.80384895]
[1734550944245,24.80384895,216.19,216.1,24.80384895]
[1734550944451,24.80384895,216.21,216.14,24.80384895]
[1734550944680,24.80384895,216.21,216.12,24.80384895]
[1734550944979,24.80384895,216.18,216.1,24.80384895]
[1734550945375,23.776884,216.24,216.14,24.80384895]
[1734550945674,24.80384895,216.26,216.18,24.80384895]
[1734550945884,24.80384895,216.28,216.2,24.80384895]
[1734550946985,24.80384895,216.26,216.16,24.80384895]
[1734550947160,24.80384895,216.26,216.18,24.80384895]
[1734550947471,24.80384895,216.28,216.18,24.80384895]
[1734550947776,24.80384895,216.26,216.18,24.80384895]
[1734550948083,24.80384895,216.2,216.07,6.1032]
[1734550948244,24.80384895,216.2,216.1,24.80384895]
[1734550948585,24.80384895,216.2,216.12,24.80384895]
[1734550948743,1.5883,216.29,216.14,24.80384895]
[1734550948744,24.80384895,216.24,216.14,24.80384895]
[1734550948947,24.80384895,216.22,216.14,24.80384895]
[1734550949183,24.80384895,216.22,216.12,24.80384895]
[1734550949355,24.80384895,216.18,216.1,24.80384895]
[1734550949746,24.80384895,216.18,216.08,24.80384895]
[1734550950183,24.80384895,216.16,216.08,24.80384895]
[1734550950358,24.80384895,216.18,216.08,24.80384895]
[1734550950773,24.80384895,216.16,216.08,24.80384895]
[1734550951079,24.80384895,216.12,216.04,24.80384895]
[1734550951280,24.80384895,216.09,216.02,24.80384895]
[1734550951482,24.80384895,216.05,215.96,30.93044895]
[1734550951788,24.80384895,216.05,215.96,24.80384895]
[1734550952278,24.80384895,216.03,215.94,24.80384895]
[1734550952864,24.80384895,216.01,215.94,24.80384895]
[1734550953286,24.80384895,216.01,215.92,24.80384895]
[1734550953490,137.69526861,216.15,215.9,25.36999365]
[1734550953491,24.80384895,215.99,215.9,25.36999365]
[1734550953990,24.80384895,215.97,215.9,25.36999365]
[1734550954198,24.80384895,215.97,215.9,0.5661447]
[1734550954367,24.80384895,215.91,215.9,0.5661447]
[1734550957196,48.58073295,215.91,215.9,0.5661447]
[1734550957796,24.80384895,215.91,215.9,0.5661447]
[1734550957982,48.58073295,215.91,215.9,0.5661447]
[1734550958388,56.27113295,215.91,215.9,0.5661447]
[1734550958765,56.27113295,215.91,215.75,24.80384895]
[1734550958766,24.80384895,215.83,215.75,24.80384895]
[1734550959512,24.80384895,215.77,215.7,6.6569]
[1734550959810,24.80384895,215.79,215.71,24.80384895]
[1734550961431,24.80384895,215.81,215.73,24.80384895]
[1734550962232,24.80384895,215.75,215.68,0.5661447]
[1734550962520,24.80384895,215.73,215.68,0.5661447]
[1734550962705,24.80384895,215.71,215.68,0.5661447]
[1734550963020,24.80384895,215.69,215.68,0.5661447]
[1734550965320,48.58073295,215.69,215.68,0.5661447]
[1734550967313,48.58073295,215.69,215.68,4.47e-05]
[1734550969691,24.80384895,215.69,215.68,4.47e-05]
[1734550972219,48.58073295,215.69,215.68,4.47e-05]
[1734550972900,24.80384895,215.69,215.68,4.47e-05]
[1734550973308,24.80384895,215.79,215.7,20.0]
[1734550973488,24.80384895,215.79,215.72,24.80384895]
[1734550973688,24.80384895,215.81,215.72,24.80384895]
[1734550973917,8.0842,215.9,215.7,26.5515]
[1734550973918,24.80384895,215.77,215.7,26.5515]
[1734550974218,24.80384895,215.75,215.7,6.5515]
[1734550974418,24.80384895,215.77,215.7,6.5515]
[1734550974915,24.80384895,215.75,215.68,24.80389365]
[1734550975424,24.80384895,215.77,215.68,24.80389365]
[1734550975594,24.80384895,215.77,215.7,24.80384895]
[1734550976324,24.80384895,215.79,215.7,24.80384895]
[1734550976613,20.0,215.87,215.72,24.80384895]
[1734550976824,24.80384895,215.81,215.72,24.80384895]
[1734550978301,24.80384895,215.79,215.7,44.80384895]
[1734550978495,24.80384895,215.79,215.7,24.80384895]
[1734550978821,24.80384895,215.79,215.72,24.80384895]
[1734550979551,24.80384895,215.79,215.7,24.80384895]
[1734550980217,24.80384895,215.77,215.68,44.80389365]
[1734550980398,24.80384895,215.77,215.68,24.80389365]
[1734550980598,24.80384895,215.75,215.68,24.80389365]
[1734550980896,24.80384895,215.77,215.68,24.80389365]
[1734550982723,24.80384895,215.79,215.72,24.80384895]
[1734550983503,24.80384895,215.79,215.7,24.80384895]
[1734550985327,24.80384895,215.73,215.68,4.47e-05]
[1734550985510,44.80384895,215.75,215.68,4.47e-05]
[1734550985715,24.80384895,215.77,215.68,24.80389365]
[1734550986524,24.80384895,215.75,215.68,24.80389365]
[1734550987347,24.80384895,215.75,215.68,4.47e-05]
[1734550987899,24.80384895,215.77,215.68,24.80389365]
[1734550988327,24.80384895,215.77,215.7,24.80384895]
[1734550988531,24.80384895,215.79,215.7,24.80384895]
[1734550988736,24.80384895,215.79,215.68,4.47e-05]
[1734550988737,24.80384895,215.81,215.74,24.80384895]
[1734550988903,24.80384895,215.83,215.74,24.80384895]
[1734550989104,24.80384895,215.83,215.76,24.80384895]
[1734550990131,24.80384895,215.85,215.76,24.80384895]
[1734550990332,24.80384895,215.83,215.74,24.80384895]
[1734550990500,24.80384895,215.81,215.72,24.80384895]
[1734550992210,24.80384895,215.81,215.74,24.80384895]
[1734550992434,24.80384895,215.83,215.74,24.80384895]
[1734550992730,24.80384895,215.85,215.76,24.80384895]
[1734550993031,24.80384895,215.85,215.78,24.80384895]
[1734550993330,24.80384895,215.85,215.76,24.80384895]
[1734550993633,24.80384895,215.83,215.74,24.80384895]
[1734550994203,8.0842,215.9,215.74,24.80384895]
[1734550994204,24.80384895,215.81,215.74,24.80384895]
[1734550994417,24.80384895,215.79,215.72,24.80384895]
[1734550994837,24.80384895,215.79,215.7,24.80384895]
[1734550995334,24.80384895,215.79,215.72,24.80384895]
[1734550995536,24.80384895,215.81,215.72,24.80384895]
[1734550996310,24.80384895,215.81,215.74,24.80384895]
[1734550996704,24.80384895,215.83,215.74,24.80384895]
[1734550997427,24.80384895,215.81,215.72,24.80384895]
[1734550997727,24.80384895,215.85,215.76,24.80384895]
[1734550998038,6.0867,215.95,215.84,24.80384895]
[1734550998338,1.5251,215.96,215.86,24.80384895]
[1734550998526,24.80384895,215.95,215.86,24.80384895]
[1734550999638,24.80384895,215.91,215.83,24.80384895]
[1734550999833,23.776884,215.88,215.77,6.2259]
[1734551000039,24.80384895,215.85,215.78,24.80384895]
[1734551000929,24.80384895,215.85,215.76,24.80384895]
[1734551001441,24.80384895,215.83,215.74,24.80384895]
[1734551001736,24.80384895,215.77,215.68,4.47e-05]
[1734551001944,24.80384895,215.77,215.69,24.80384895]
[1734551002123,24.80384895,215.79,215.69,24.80384895]
[1734551002329,24.80384895,215.77,215.69,24.80384895]
[1734551004842,20.0,215.78,215.69,24.80384895]
[1734551005054,24.80384895,215.81,215.73,24.80384895]
[1734551005737,24.80384895,215.83,215.73,24.80384895]
[1734551005936,24.80384895,215.79,215.71,24.80384895]
[1734551006108,24.80384895,215.77,215.69,24.80384895]
[1734551006537,31.745884,215.88,215.68,4.47e-05]
[1734551006538,24.80384895,215.75,215.68,4.47e-05]
[1734551006741,24.80384895,215.73,215.68,4.47e-05]
[1734551006947,24.80384895,215.71,215.68,4.47e-05]
[1734551007749,24.80384895,215.69,215.68,4.47e-05]
[1734551008039,48.58073295,215.69,215.68,4.47e-05]
[1734551008414,48.53160015,215.69,215.68,4.47e-05]
[1734551010414,24.75471615,215.69,215.68,4.47e-05]
[1734551012535,48.53160015,215.69,215.68,4.47e-05]
[1734551015345,31.524284,215.64,215.5,24.80384895]
[1734551015652,24.80384895,215.57,215.5,24.80384895]
[1734551016153,24.80384895,215.57,215.48,31.38934895]
[1734551016367,24.80384895,215.55,215.48,31.38934895]
[1734551016648,24.80384895,215.55,215.48,24.80384895]
[1734551017749,20.0,215.61,215.54,24.80384895]
[1734551017924,24.80384895,215.62,215.55,24.80384895]
[1734551018126,24.80384895,215.56,215.47,1.6394]
[1734551018357,24.80384895,215.54,215.47,1.6394]
[1734551019438,24.80384895,215.6,215.47,24.80384895]
[1734551019439,24.80384895,215.55,215.47,24.80384895]
[1734551019626,24.80384895,215.54,215.47,24.80384895]
[1734551020331,24.80384895,215.54,215.46,25.36999365]